fUST/lending_fUST_20250531
["ID","MTS","AMOUNT","RATE_DAILY","PERIOD"]
[363230312,1748632243959,-151.0,0.000188,2]
[363230314,1748632243968,-151.0,0.000188,2]
[363230317,1748632243978,-587.0,0.00018808,2]
[363230319,1748632243988,-587.0,0.00018808,2]
[363230321,1748632243997,-151.0,0.00018831,2]
[363230322,1748632244006,-8427.65459665,0.00018831,2]
[363230324,1748632244015,-240.771691,0.00018852,2]
[363230326,1748632244025,-240.771691,0.00018852,2]
[363230329,1748632244035,-430.0,0.00018852,2]
[363230331,1748632244045,-430.0,0.00018852,2]
[363230333,1748632244054,-430.0,0.00018852,2]
[363230334,1748632244063,-430.0,0.00018852,2]
[363230336,1748632244072,-430.0,0.00018854,2]
[363230338,1748632244082,-430.0,0.00018854,2]
[363230341,1748632244092,-472.18,0.00018854,2]
[363230342,1748632244101,-1569.26,0.00018854,2]
[363230345,1748632244111,-430.0,0.00018854,2]
[363230346,1748632244120,-430.0,0.00018854,2]
[363230349,1748632244130,-5697.47,0.00018854,2]
[363230351,1748632244140,-2533.58,0.00018854,2]
[363230353,1748632244149,-151.0,0.00018855,2]
[363230355,1748632244158,-151.0,0.00018856,2]
[363230356,1748632244167,-231.623872,0.00018856,2]
[363230357,1748632244177,-231.623872,0.00018856,2]
[363230358,1748632244186,-151.0,0.00018856,2]
[363230359,1748632244196,-361.610647,0.00018856,2]
[363230360,1748632244206,-361.610647,0.00018856,2]
[363230361,1748632244216,-151.0,0.00018856,2]
[363230362,1748632244225,-867.799224,0.00018856,2]
[363230363,1748632244234,-867.799224,0.00018856,2]
[363230364,1748632244244,-151.0,0.00018857,2]
[363230365,1748632244254,-151.0,0.00018857,2]
[363230366,1748632244263,-151.0,0.00018857,2]
[363230367,1748632244273,-151.0,0.00018857,2]
[363230369,1748632244282,-151.0,0.000189,2]
[363230370,1748632244292,-151.0,0.000189,2]
[363230371,1748632244301,-151.0,0.000189,2]
[363230372,1748632244311,-151.0,0.000189,2]
[363230373,1748632244320,-2366.50454984,0.000189,2]
[363230374,1748632244329,-6670.55226137,0.000189,2]
[363230375,1748632244339,-430.0,0.00018904,2]
[363230376,1748632244350,-430.0,0.00018904,2]
[363230377,1748632244360,-430.0,0.00018904,2]
[363230378,1748632244369,-2180.88,0.00018904,2]
[363230379,1748632244380,-2473.97,0.00018927,2]
[363230381,1748632244390,-3349.78,0.00018927,2]
[363230382,1748632244399,-430.0,0.00018927,2]
[363230383,1748632244409,-830.19,0.00018927,2]
[363230384,1748632244418,-3932.54,0.00018927,2]
[363230385,1748632244428,-497.84,0.00018927,2]
[363230386,1748632244437,-550.45,0.00018927,2]
[363230387,1748632244448,-798.93,0.00018927,2]
[363230388,1748632244457,-430.0,0.00018927,2]
[363230389,1748632244477,-3008.99,0.00018927,2]
[363230390,1748632244489,-151.0,0.00018927,2]
[363230391,1748632244498,-3219.2,0.00018927,2]
[363230392,1748632244508,-1222.99,0.00018927,2]
[363230393,1748632244518,-430.0,0.00018927,2]
[363230394,1748632244530,-574.47,0.00018927,2]
[363230395,1748632244540,-517.38,0.00018927,2]
[363230396,1748632244551,-1916.07,0.00018927,2]
[363230397,1748632244561,-626.614012,0.00018927,2]
[363230398,1748632244570,-626.614012,0.00018927,2]
[363230399,1748632244580,-606.99,0.00018928,2]
[363230400,1748632244590,-441.18,0.00018928,2]
[363230401,1748632244600,-476.11,0.00018928,2]
[363230402,1748632244610,-608.53,0.00018928,2]
[363230403,1748632244620,-1601.5,0.00018928,2]
[363230404,1748632244630,-709.57,0.00018928,2]
[363230405,1748632244639,-430.0,0.00018928,2]
[363230406,1748632244649,-714.78,0.00018928,2]
[363230407,1748632244659,-800.37,0.00018928,2]
[363230408,1748632244668,-430.0,0.00018928,2]
[363230409,1748632244678,-477.87,0.00018928,2]
[363230410,1748632244687,-516.98,0.00018928,2]
[363230411,1748632244698,-754.27,0.00018928,2]
[363230412,1748632244707,-430.0,0.00018928,2]
[363230413,1748632244717,-1114.82,0.00018928,2]
[363230414,1748632244726,-820.21,0.00018928,2]
[363230415,1748632244736,-657.74,0.00018928,2]
[363230416,1748632244746,-598.36,0.00018928,2]
[363230417,1748632244756,-447.21,0.00018928,2]
[363230418,1748632244766,-408.10338702,0.00018928,2]
[363230419,1748632244776,-430.0,0.00018928,2]
[363230420,1748632244786,-2179.49,0.00018928,2]
[363230421,1748632244795,-151.0,0.00018929,2]
[363230422,1748632244805,-160.960903,0.00018929,2]
[363230423,1748632244814,-151.0,0.00018956,2]
[363230424,1748632244823,-13061.26609033,0.00018956,2]
[363230425,1748632244833,-2351.0,0.00018961,2]
[363230426,1748632244844,-437.28126419,0.00018973,2]
[363230427,1748632244853,-500.0,0.00018973,2]
[363230428,1748632244863,-500.0,0.00018973,2]
[363230429,1748632244872,-500.0,0.00018973,2]
[363230430,1748632244882,-500.0,0.00018973,2]
[363230431,1748632244892,-500.0,0.00018973,2]
[363230432,1748632244902,-500.0,0.00018973,2]
[363230433,1748632244912,-400.31683951,0.00018973,2]
[363230434,1748632244921,-500.0,0.00018973,2]
[363230435,1748632244931,-296.4592151,0.00018973,2]
[363230436,1748632244941,-160.16771717,0.00018973,2]
[363230437,1748632244952,-500.0,0.00018973,2]
[363230438,1748632244961,-500.0,0.00018973,2]
[363230439,1748632244970,-575.15556339,0.00018973,2]
[363230440,1748632244980,-450.27326075,0.00018973,2]
[363230441,1748632244990,-500.0,0.00018973,2]
[363230442,1748632245000,-500.73940826,0.00018973,2]
[363230443,1748632245010,-399.05799723,0.00018973,2]
[363230444,1748632245021,-500.0,0.00018973,2]
[363230445,1748632245030,-158.66588921,0.00018973,2]
[363230446,1748632245040,-341.46195536,0.00018973,2]
[363230447,1748632245049,-500.0,0.00018973,2]
[363230448,1748632245059,-500.0,0.00018973,2]
[363230449,1748632245069,-272.15343245,0.00018973,2]
[363230450,1748632245082,-239.8002961,0.00018973,2]
[363230451,1748632245092,-500.0,0.00018973,2]
[363230452,1748632245104,-500.0,0.00018973,2]
[363230453,1748632245114,-500.0,0.00018973,2]
[363230454,1748632245124,-500.0,0.00018973,2]
[363230455,1748632245134,-600.0,0.00018973,2]
[363230456,1748632245143,-500.0,0.00018973,2]
[363230458,1748632245152,-578.41688806,0.00018973,2]
[363230459,1748632245162,-500.0,0.00018973,2]
[363230460,1748632245172,-500.0,0.00018973,2]
[363230461,1748632245182,-500.0,0.00018973,2]
[363230462,1748632245192,-500.0,0.00018973,2]
[363230463,1748632245201,-377.08102278,0.00018973,2]
[363230464,1748632245212,-434.96903888,0.00018973,2]
[363230465,1748632245222,-160.15343853,0.00018973,2]
[363230466,1748632245231,-500.0,0.00018973,2]
[363230467,1748632245241,-160.16834258,0.00018973,2]
[363230468,1748632245250,-501.91113092,0.00018973,2]
[363230469,1748632245260,-240.771691,0.00018973,2]
[363230470,1748632245270,-240.771691,0.00018973,2]
[363230471,1748632245280,-233.253889,0.00018973,2]
[363230472,1748632245290,-151075.91018555,0.0001899,2]
[363230473,1748632245300,-171.956764,0.0001899,2]
[363230474,1748632245310,-171.956764,0.0001899,2]
[363230476,1748632245319,-151.0,0.0001899,2]
[363230478,1748632245329,-151.0,0.0001899,2]
[363230479,1748632245339,-151.0,0.0001899,2]
[363230480,1748632245349,-151.0,0.0001899,2]
[363230481,1748632245359,-151.0,0.0001899,2]
[363230482,1748632245368,-151.0,0.0001899,2]
[363230483,1748632245377,-231.623872,0.0001899,2]
[363230484,1748632245387,-231.623872,0.0001899,2]
[363230485,1748632245397,-151.0,0.0001899,2]
[363230486,1748632245407,-151.0,0.0001899,2]
[363230487,1748632245416,-151.0,0.0001899,2]
[363230488,1748632245427,-151.0,0.0001899,2]
[363230489,1748632245437,-151.0,0.0001899,2]
[363230490,1748632245449,-151.0,0.0001899,2]
[363230491,1748632245460,-151.0,0.0001899,2]
[363230492,1748632245470,-151.0,0.0001899,2]
[363230493,1748632245480,-151.0,0.0001899,2]
[363230494,1748632245490,-151.0,0.0001899,2]
[363230495,1748632245500,-178.665024,0.0001899,2]
[363230496,1748632245510,-178.665024,0.0001899,2]
[363230497,1748632245520,-151.0,0.0001899,2]
[363230498,1748632245533,-151.0,0.0001899,2]
[363230499,1748632245545,-432.280599,0.0001899,2]
[363230500,1748632245555,-151.0,0.0001899,2]
[363230501,1748632245565,-151.0,0.0001899,2]
[363230502,1748632245575,-432.280599,0.0001899,2]
[363230503,1748632245585,-151.0,0.0001899,2]
[363230504,1748632245595,-151.0,0.0001899,2]
[363230505,1748632245605,-199.631653,0.0001899,2]
[363230506,1748632245615,-199.631653,0.0001899,2]
[363230507,1748632245625,-151.0,0.0001899,2]
[363230508,1748632245635,-151.0,0.0001899,2]
[363230509,1748632245644,-361.610647,0.0001899,2]
[363230510,1748632245654,-361.610647,0.0001899,2]
[363230511,1748632245664,-151.0,0.0001899,2]
[363230512,1748632245674,-151.0,0.0001899,2]
[363230513,1748632245684,-151.0,0.0001899,2]
[363230514,1748632245694,-151.0,0.0001899,2]
[363230515,1748632245704,-964.43023,0.0001899,2]
[363230516,1748632245714,-964.43023,0.0001899,2]
[363230517,1748632245723,-378.41083,0.0001899,2]
[363230518,1748632245733,-378.41083,0.0001899,2]
[363230519,1748632245743,-370.295313,0.0001899,2]
[363230520,1748632245752,-370.295313,0.0001899,2]
[363230521,1748632245762,-965.409704,0.0001899,2]
[363230522,1748632245771,-965.409704,0.0001899,2]
[363230523,1748632245781,-867.799224,0.0001899,2]
[363230524,1748632245791,-867.799224,0.0001899,2]
[363230525,1748632245801,-151.0,0.0001899,2]
[363230526,1748632245810,-178.48456,0.0001899,2]
[363230527,1748632245819,-178.48456,0.0001899,2]
[363230528,1748632245829,-1436.812628,0.0001899,2]
[363230529,1748632245838,-1436.812628,0.0001899,2]
[363230530,1748632245849,-626.614012,0.0001899,2]
[363230531,1748632245858,-626.614012,0.0001899,2]
[363230532,1748632245868,-34448.08696,0.00018999,2]
[363230533,1748632245878,-6853.65200925,0.00019,3]
[363230534,1748632245887,-129092.43023983,0.00019,2]
[363230535,1748632245897,-4702.49881547,0.00019,2]
[363230536,1748632246517,-17.53493665,0.00016735,2]
[363230537,1748632246529,-412.46506335,0.00016735,2]
[363230538,1748632246539,-70.37761354,0.0001726,2]
[363230539,1748632246555,-207.75,0.00017009,2]
[363230540,1748632246564,-359.62238646,0.0001726,2]
[363230541,1748632246574,-430.0,0.00017534,2]
[363230542,1748632246585,-430.0,0.00017808,2]
[363230543,1748632246594,-430.0,0.00018082,2]
[363230544,1748632246603,-366.47,0.00018356,2]
[363230545,1748632246612,-203898.45240861,0.00019,2]
[363230546,1748632246701,-563.49896386,0.00019,2]
[363230547,1748632246796,-300.0,0.00016735,2]
[363230548,1748632246806,-430.0,0.00016736,2]
[363230549,1748632246815,-1987.27982574,0.00019,2]
[363230550,1748632246828,-972.58120728,0.00019,2]
[363230551,1748632246840,-4701.65536337,0.00019,2]
[363230552,1748632247263,-242.99786905,0.00016438,2]
[363230553,1748632247274,-500.0,0.00017669,2]
[363230554,1748632247284,-298.31555671,0.00017669,2]
[363230555,1748632247294,-467.01804907,0.00017669,2]
[363230557,1748632248115,-430.0,0.00016736,2]
[363230558,1748632248125,-32.98195093,0.00017669,2]
[363230559,1748632248135,-666.30951131,0.00017669,2]
[363230560,1748632393170,-164.33969954,0.00015079,2]
[363230561,1748632397225,-36.44432877,0.00015079,2]
[363230562,1748632512867,-158.18523208,0.00014947,2]
[363230563,1748632514976,-264.38810894,0.00014947,2]
[363230564,1748632518987,-29.96893708,0.00014947,2]
[363230566,1748632578918,-156.25836761,0.00014597,2]
[363230567,1748632581695,-204.20060795,0.00014597,2]
[363230568,1748632583286,-188.41772303,0.00014597,2]
[363230569,1748632584844,-181.16,0.00014597,2]
[363230570,1748632586369,-152.0,0.00014597,2]
[363230571,1748632588507,-524.0,0.00014597,2]
[363230572,1748632590553,-198.58919477,0.00014597,2]
[363230573,1748632592173,-191.71790609,0.00014597,2]
[363230574,1748632595780,-249.52869692,0.00014597,2]
[363230575,1748632597951,-154.07436628,0.00014597,2]
[363230576,1748632599979,-162.22030046,0.00014597,2]
[363230577,1748632602128,-303.55392084,0.00014597,2]
[363230579,1748632604243,-3511.0,0.00014597,2]
[363230580,1748632605516,-85.11435855,0.00014597,2]
[363230582,1748632670578,-10000.0,0.00014712,2]
[363230583,1748632670608,-5000.0,0.0001486,2]
[363230584,1748632671458,580.452052,0.00013699,2]
[363230585,1748632743234,-4932.0,0.0001486,2]
[363230586,1748632810824,-261.26600596,0.000145,2]
[363230587,1748632812210,-1780.42716804,0.000145,2]
[363230588,1748632812233,-300.0,0.00014729,2]
[363230589,1748632812255,-300.0,0.00014729,2]
[363230590,1748632812276,-1200.0,0.00014729,2]
[363230591,1748632812298,-27388.3067378,0.0001473,2]
[363230592,1748632812320,-49.26609416,0.0001486,2]
[363230593,1748632947595,-800.0,0.00014691,2]
[363230595,1748633053514,-353.13267781,0.00014544,2]
[363230596,1748633055763,-311.77017236,0.00014544,2]
[363230597,1748633057928,-191.89801977,0.00014544,2]
[363230598,1748633060123,-188.11901069,0.00014544,2]
[363230599,1748633063837,-175.77452025,0.00014544,2]
[363230600,1748633065408,-159.02402088,0.00014544,2]
[363230601,1748633066920,-214.5075675,0.00014544,2]
[363230602,1748633070759,-242.96843892,0.00014544,2]
[363230603,1748633072349,-262.29171518,0.00014544,2]
[363230604,1748633074331,-154.48612629,0.00014544,2]
[363230605,1748633076462,-279.969293,0.00014544,2]
[363230606,1748633080497,-182.41261038,0.00014544,2]
[363230607,1748633082295,-2283.64582697,0.00014544,2]
[363230608,1748633082316,-22.35417303,0.00014691,2]
[363230610,1748633148976,-4940.0,0.00014544,2]
[363230611,1748633281888,-167.50929621,0.00014544,2]
[363230612,1748633282897,-4832.49070379,0.00014544,2]
[363230613,1748633282921,-61.77664727,0.00014691,2]
[363230614,1748633284459,16.73264894,0.00014101,2]
[363230615,1748633284488,3017.56735106,0.00014101,2]
[363230616,1748633293509,11288.68163102,0.000125,2]
[363230617,1748633303996,4805.96589918,0.00013,2]
[363230618,1748633306912,280.38342538,0.0001,2]
[363230621,1748633318278,603.999999,0.0002,120]
[363230622,1748633321987,14856.93476947,0.0001,2]
[363230623,1748633322017,23105.18724638,0.0001,2]
[363230648,1748633418426,-155.60108244,0.00014332,2]
[363230650,1748633420489,-152.0,0.00014332,2]
[363230651,1748633422047,-208.36463291,0.00014332,2]
[363230653,1748633423542,-247.00956722,0.00014332,2]
[363230654,1748633427995,-233.70857938,0.00014332,2]
[363230655,1748633430304,-318.69192036,0.00014332,2]
[363230678,1748633431883,-247.37099641,0.00014332,2]
[363230701,1748633435830,-3687.60221849,0.00014332,2]
[363230702,1748633435991,-19649.65100279,0.00014332,2]
[363230703,1748633436000,-1024.5144332,0.00014672,2]
[363230704,1748633436010,-5000.0,0.00014959,2]
[363230705,1748633436019,-1200.0,0.00014999,2]
[363230706,1748633436028,-2062.18233183,0.00015,2]
[363230707,1748633436038,-300.0,0.00015109,2]
[363230708,1748633436048,-300.0,0.00015109,2]
[363230709,1748633436058,-2085.9185672,0.0001511,2]
[363230710,1748633436068,-2572.47,0.00015423,2]
[363230711,1748633436077,-160.0,0.00015455,2]
[363230712,1748633436086,-300.0,0.00015612,2]
[363230713,1748633436095,-511.00250851,0.00015804,2]
[363230714,1748633436104,-8519.7806718,0.00016,2]
[363230715,1748633436114,-50000.0,0.00016,2]
[363230716,1748633436123,-390.7714167,0.00016003,2]
[363230717,1748633436132,-5144.94,0.00016157,2]
[363230718,1748633436142,-500.0,0.00016437,2]
[363230719,1748633436151,-500.0,0.00016437,2]
[363230720,1748633436160,-500.0,0.00016437,2]
[363230721,1748633436169,-500.0,0.00016437,2]
[363230722,1748633436179,-500.0,0.00016437,2]
[363230723,1748633436188,-500.0,0.00016437,2]
[363230724,1748633436198,-500.0,0.00016437,2]
[363230725,1748633436207,-500.0,0.00016437,2]
[363230726,1748633436217,-500.0,0.00016437,2]
[363230727,1748633436227,-409.02410236,0.00016437,2]
[363230728,1748633436237,-500.0,0.00016437,2]
[363230729,1748633436246,-500.0,0.00016437,2]
[363230730,1748633436255,-500.0,0.00016437,2]
[363230731,1748633436265,-474.40207008,0.00016437,2]
[363230732,1748633436274,-500.0,0.00016437,2]
[363230733,1748633436284,-310.18998419,0.00016437,2]
[363230734,1748633436293,-539.08767218,0.00016437,2]
[363230735,1748633436302,-500.0,0.00016437,2]
[363230736,1748633436312,-500.0,0.00016437,2]
[363230737,1748633436321,-500.0,0.00016437,2]
[363230738,1748633436331,-500.0,0.00016437,2]
[363230739,1748633436341,-500.0,0.00016437,2]
[363230740,1748633436350,-500.0,0.00016437,2]
[363230741,1748633436360,-430.0,0.00016438,2]
[363230742,1748633436370,-175.98700749,0.00016438,2]
[363230743,1748633436380,-430.0,0.00016438,2]
[363230744,1748633436390,-430.0,0.00016438,2]
[363230745,1748633436400,-430.0,0.00016438,2]
[363230746,1748633436410,-430.0,0.00016438,2]
[363230747,1748633436419,-430.0,0.00016438,2]
[363230748,1748633436429,-430.0,0.00016438,2]
[363230749,1748633436438,-430.0,0.00016438,2]
[363230750,1748633436448,-500.0,0.00016438,2]
[363230751,1748633436458,-430.0,0.00016438,2]
[363230752,1748633436467,-456.98,0.00016438,2]
[363230753,1748633436476,-430.0,0.00016438,2]
[363230754,1748633436486,-430.0,0.00016438,2]
[363230755,1748633436495,-430.0,0.00016438,2]
[363230756,1748633436504,-430.0,0.00016438,2]
[363230757,1748633436516,-430.0,0.00016438,2]
[363230758,1748633436526,-430.0,0.00016438,2]
[363230759,1748633436536,-430.0,0.00016438,2]
[363230760,1748633436545,-371.02602251,0.00016438,2]
[363230761,1748633436555,-524.85156143,0.00016438,2]
[363230762,1748633436564,-430.0,0.00016438,2]
[363230763,1748633436574,-430.0,0.00016438,2]
[363230764,1748633436583,-401.32539426,0.00016438,2]
[363230765,1748633436599,-430.0,0.00016438,2]
[363230766,1748633436608,-455.36,0.00016438,2]
[363230767,1748633436618,-432.61563498,0.00016438,2]
[363230768,1748633436627,-2810.81,0.00016438,2]
[363230769,1748633436637,-430.0,0.00016438,2]
[363230770,1748633436646,-1378.47,0.00016438,2]
[363230771,1748633436656,-450.0,0.00016438,2]
[363230772,1748633436666,-430.0,0.00016438,2]
[363230773,1748633436675,-2168.64,0.00016438,2]
[363230774,1748633436684,-560.04,0.00016438,2]
[363230775,1748633436693,-2557.64,0.00016438,2]
[363230776,1748633436703,-430.0,0.00016438,2]
[363230777,1748633436712,-536.09,0.00016438,2]
[363230778,1748633436721,-430.0,0.00016438,2]
[363230779,1748633436730,-430.0,0.00016438,2]
[363230780,1748633436739,-2772.5,0.00016438,2]
[363230781,1748633436750,-657.2,0.00016438,2]
[363230782,1748633436761,-500.0,0.00016438,2]
[363230783,1748633436771,-500.0,0.00016438,2]
[363230784,1748633436782,-428.17290676,0.00016438,2]
[363230785,1748633436792,-430.0,0.00016438,2]
[363230786,1748633436802,-440.26,0.00016438,2]
[363230787,1748633436811,-552.37,0.00016438,2]
[363230788,1748633436820,-3058.31,0.00016438,2]
[363230789,1748633436829,-433.51,0.00016438,2]
[363230790,1748633436839,-430.0,0.00016438,2]
[363230791,1748633436848,-430.0,0.00016438,2]
[363230792,1748633436857,-716.07,0.00016438,2]
[363230793,1748633436870,-430.0,0.00016438,2]
[363230794,1748633436879,-430.0,0.00016438,2]
[363230795,1748633436889,-430.0,0.00016438,2]
[363230796,1748633436899,-863.21,0.00016438,2]
[363230797,1748633436910,-1646.08,0.00016438,2]
[363230798,1748633436920,-430.0,0.00016438,2]
[363230799,1748633436929,-612.8,0.00016438,2]
[363230800,1748633436938,-2630.23,0.00016438,2]
[363230801,1748633436947,-430.0,0.00016438,2]
[363230802,1748633436957,-882.53,0.00016438,2]
[363230803,1748633436966,-430.0,0.00016438,2]
[363230804,1748633436975,-430.0,0.00016438,2]
[363230805,1748633436985,-430.0,0.00016438,2]
[363230806,1748633436995,-430.0,0.00016438,2]
[363230807,1748633437005,-430.0,0.00016438,2]
[363230808,1748633437014,-430.0,0.00016438,2]
[363230809,1748633437024,-430.0,0.00016438,2]
[363230810,1748633437033,-430.0,0.00016438,2]
[363230811,1748633437043,-430.0,0.00016438,2]
[363230812,1748633437052,-430.0,0.00016438,2]
[363230813,1748633437061,-430.0,0.00016438,2]
[363230814,1748633437070,-649.3,0.00016438,2]
[363230815,1748633437080,-430.0,0.00016438,2]
[363230816,1748633437089,-430.0,0.00016438,2]
[363230817,1748633437099,-617.84,0.00016438,2]
[363230818,1748633437108,-430.0,0.00016438,2]
[363230819,1748633437117,-967.67,0.00016438,2]
[363230820,1748633437126,-488.7955054,0.00016438,2]
[363230821,1748633437135,-1898.69,0.00016438,2]
[363230822,1748633437144,-430.0,0.00016438,2]
[363230823,1748633437153,-1580.62,0.00016438,2]
[363230824,1748633437163,-448.77,0.00016438,2]
[363230825,1748633437172,-1437.05,0.00016438,2]
[363230826,1748633437181,-430.0,0.00016438,2]
[363230827,1748633437190,-430.0,0.00016438,2]
[363230828,1748633437199,-430.0,0.00016438,2]
[363230829,1748633437209,-430.0,0.00016438,2]
[363230830,1748633437218,-430.0,0.00016438,2]
[363230831,1748633437227,-688.89,0.00016438,2]
[363230832,1748633437236,-430.0,0.00016438,2]
[363230833,1748633437246,-430.0,0.00016438,2]
[363230834,1748633437255,-430.85,0.00016438,2]
[363230835,1748633437264,-430.0,0.00016438,2]
[363230836,1748633437274,-430.0,0.00016438,2]
[363230837,1748633437283,-430.0,0.00016438,2]
[363230838,1748633437292,-430.0,0.00016438,2]
[363230839,1748633437300,-708.09,0.00016438,2]
[363230840,1748633437310,-430.0,0.00016438,2]
[363230841,1748633437319,-430.0,0.00016438,2]
[363230842,1748633437329,-430.0,0.00016438,2]
[363230843,1748633437338,-1634.62,0.00016438,2]
[363230844,1748633437347,-430.0,0.00016438,2]
[363230845,1748633437357,-430.0,0.00016438,2]
[363230846,1748633437367,-430.0,0.00016438,2]
[363230847,1748633437376,-430.0,0.00016438,2]
[363230848,1748633437387,-430.0,0.00016438,2]
[363230849,1748633437395,-493.31,0.00016438,2]
[363230850,1748633437405,-430.0,0.00016438,2]
[363230851,1748633437414,-430.0,0.00016438,2]
[363230852,1748633437423,-1014.74,0.00016438,2]
[363230853,1748633437432,-430.0,0.00016438,2]
[363230854,1748633437441,-430.0,0.00016438,2]
[363230855,1748633437450,-538.21524396,0.00016438,2]
[363230856,1748633437459,-430.0,0.00016438,2]
[363230857,1748633437468,-500.0,0.00016438,2]
[363230858,1748633437477,-1680.0,0.00016499,2]
[363230859,1748633437487,-420.0,0.00016534,2]
[363230866,1748633437645,-1741.54762182,0.00016612,2]
[363230867,1748633437655,-1317.19,0.00016711,2]
[363230868,1748633437664,-430.0,0.00016711,2]
[363230869,1748633437673,-1578.49,0.00016711,2]
[363230870,1748633437682,-160.0,0.00016711,2]
[363230871,1748633437691,-5389.56,0.00016711,2]
[363230872,1748633437700,-2428.01,0.00016711,2]
[363230873,1748633437710,-430.0,0.00016711,2]
[363230874,1748633437719,-430.0,0.00016712,2]
[363230875,1748633437729,-430.0,0.00016712,2]
[363230876,1748633437738,-430.0,0.00016712,2]
[363230877,1748633437748,-430.0,0.00016712,2]
[363230878,1748633437756,-430.0,0.00016712,2]
[363230879,1748633437766,-500.0,0.00016712,2]
[363230880,1748633437775,-456.98,0.00016712,2]
[363230881,1748633437785,-430.0,0.00016712,2]
[363230882,1748633437794,-468.21,0.00016712,2]
[363230883,1748633437804,-430.0,0.00016712,2]
[363230884,1748633437813,-430.0,0.00016712,2]
[363230885,1748633437822,-455.36,0.00016712,2]
[363230886,1748633437832,-2810.81,0.00016712,2]
[363230887,1748633437841,-470.2837575,0.00016712,2]
[363230888,1748633437850,-1378.47,0.00016712,2]
[363230889,1748633437859,-2168.64,0.00016712,2]
[363230890,1748633437871,-560.04,0.00016712,2]
[363230891,1748633437880,-2557.64,0.00016712,2]
[363230892,1748633437891,-536.09,0.00016712,2]
[363230893,1748633437900,-430.0,0.00016712,2]
[363230894,1748633437911,-657.2,0.00016712,2]
[363230895,1748633437921,-2772.5,0.00016712,2]
[363230896,1748633437930,-440.26,0.00016712,2]
[363230897,1748633437940,-552.37,0.00016712,2]
[363230898,1748633437955,-3058.31,0.00016712,2]
[363230899,1748633437964,-433.51,0.00016712,2]
[363230900,1748633437974,-430.0,0.00016712,2]
[363230901,1748633437983,-430.0,0.00016712,2]
[363230902,1748633437993,-716.07,0.00016712,2]
[363230903,1748633438002,-430.0,0.00016712,2]
[363230904,1748633438011,-430.0,0.00016712,2]
[363230905,1748633438021,-863.21,0.00016712,2]
[363230906,1748633438031,-1646.08,0.00016712,2]
[363230907,1748633438042,-430.0,0.00016712,2]
[363230908,1748633438051,-612.8,0.00016712,2]
[363230909,1748633438061,-2630.23,0.00016712,2]
[363230911,1748633438070,-430.0,0.00016712,2]
[363230912,1748633438079,-882.53,0.00016712,2]
[363230914,1748633438088,-430.0,0.00016712,2]
[363230915,1748633438097,-430.0,0.00016712,2]
[363230916,1748633438108,-430.0,0.00016712,2]
[363230918,1748633438117,-430.0,0.00016712,2]
[363230920,1748633438126,-430.0,0.00016712,2]
[363230922,1748633438136,-171.89753536,0.00016712,2]
[363230924,1748633438145,-649.3,0.00016712,2]
[363230926,1748633438154,-430.0,0.00016712,2]
[363230928,1748633438163,-617.84,0.00016712,2]
[363230930,1748633438172,-430.0,0.00016712,2]
[363230932,1748633438181,-967.67,0.00016712,2]